Cogmind - Beta 15 @@@ ROGUE MODE // 2025.05.06 @ 02:14:17 Player: McSaucyNugget Result: Escaped! Performance ------------- Evolutions (9) 4500 Regions Visited (18) 3600 Robots Destroyed (254) 1270 Value Destroyed (11468) 11468 Prototype IDs (30) 600 Alien Tech Used (0) 0 Bonus (9859) 9859 TOTAL SCORE: 31297 Bonus ------- High Alert Combat Kills 2290 Follower Combat Kills 1731 Network Hubs Disabled 400 Registered with UFD 300 Met Optimus in HQ 500 Met Data Miner 300 Met R17 at Cetus 500 Met R17 at Research 2000 Win 3000 Friendly Fire -1162 Cogmind --------- Core Integrity 666/1600 Matter 300/300 Energy 98/100 System Corruption 13% Temperature Cool (0) Movement Core (50) Location To Epsilon Eridani Parts ------- > --- POWER (3) -------- (None) > --- PROPULSION (6) --- (None) > --- UTILITY (13) ----- Machine Analyzer Advanced Signal Interpreter Advanced Signal Interpreter Advanced Target Analyzer Advanced Target Analyzer > --- WEAPON (3) ------- (None) > --- INVENTORY (5) ---- Micro Antimatter Reactor Myomer Leg Enhanced Hardcell Cannon Enhanced Hardcell Cannon Enhanced Hardcell Cannon Peak State ------------ > --- POWER ------------ Reinforced Antimatter Reactor Reinforced Antimatter Reactor Light Quantum Reactor > --- PROPULSION ------- Armored Heavy Treads Biometal Heavy Treads High-density Centrium Heavy Treads > --- UTILITY ---------- Advanced Heat Sink Advanced Heat Sink Advanced Heat Sink Advanced Heat Sink Advanced Heat Sink Advanced Cooling System High-capacity Storage Unit Machine Analyzer Advanced Visual Processing Unit Advanced Signal Interpreter Improved Terrain Scanner Advanced Target Analyzer Advanced Corruption Screen > --- WEAPON ----------- Enhanced Hardcell Cannon Enhanced Hardcell Cannon Compact Linear Accelerator > --- INVENTORY -------- Particle Reactor Micro Antimatter Reactor Micro Antimatter Reactor Biometal Heavy Treads Compact Matter Pod Advanced Sensor Array Advanced Signal Interpreter Heavy Armor Plating Linear Accelerator Enhanced Hardcell Cannon Enhanced Hardcell Cannon Enhanced Hardcell Cannon Enhanced Hardcell Cannon Enhanced Hardcell Cannon Enhanced Hardcell Cannon Enhanced Hardcell Cannon Gamma Bomb Array Plasma Lance [Rating: 180] Favorites ----------- Power Reinforced Antimatter Reactor Engine Ion Engine Power Core Micro Fission Core Reactor Reinforced Antimatter Reactor Propulsion Myomer Leg Treads Light Treads Leg Myomer Leg Wheel Armored Wheel Hover Unit Improved Antigrav System Flight Unit Flightbrick Utility Advanced Melee Analysis Suite Device Advanced Heat Sink Storage High-capacity Storage Unit Processor Advanced Melee Analysis Suite Hackware Hacking Suite Protection Centrium Medium Armor Plating Weapon Companion Sword Energy Gun Medium Laser Energy Cannon Enhanced Nova Cannon Ballistic Gun Heavy Assault Rifle Ballistic Cannon Battle Cannon Launcher Long-range Missile Launcher Impact Weapon Powered Hammer Slashing Weapon Companion Sword Piercing Weapon Plasma Lance Build | -11 -10 -10 -9 -9 -6 -6 -6 -6 -5 -5 -4 -4 -4 -4 -4 -3 -2 -1 ------- Run | Yrd Mat Sub Rec Scr Fac Low Low Dat Pro Fac Fac Ext Cet Arc Hub Res Res Acc Slots Evolved 18 | . . . . . 8 . . . . 2 2 . . . . 2 2 2 Power 2 | . . . . . 1 . . . . . . . . . . . . 1 Propulsion 4 | . . . . . 2 . . . . 2 . . . . . . . . Utility 11 | . . . . . 5 . . . . . 2 . . . . 2 2 . Weapon 1 | . . . . . . . . . . . . . . . . . . 1 Parts Attached 223 | 6 5 6 1 3 20 . . . . 6 11 14 8 . 7 41 78 17 Power 33 | 1 . 2 . 1 4 . . . . 2 . 2 2 . 1 6 10 2 Engine 5 | 1 . 2 . 1 . . . . . . . . . . . . 1 . Core 6 | . . . . . 4 . . . . 2 . . . . . . . . Reactor 22 | . . . . . . . . . . . . 2 2 . 1 6 9 2 Propulsion 53 | 2 . 1 . 1 1 . . . . 1 3 9 1 . 3 11 19 1 Treads 18 | 2 . . . . . . . . . . . 3 . . . . 12 1 Leg 21 | . . . . . . . . . . . . 6 1 . 3 11 . . Wheel 2 | . . 1 . 1 . . . . . . . . . . . . . . Hover 7 | . . . . . . . . . . . . . . . . . 7 . Flight 5 | . . . . . 1 . . . . 1 3 . . . . . . . Utility 104 | 1 2 . 1 . 13 . . . . 3 8 3 5 . 2 23 39 4 Device 40 | . 1 . . . 5 . . . . 1 1 2 . . 1 6 22 1 Storage 7 | 1 1 . . . . . . . . . 1 . . . . 3 1 . Processor 18 | . . . . . 2 . . . . . 3 . . . . 2 9 2 Hackware 5 | . . . . . 4 . . . . . 1 . . . . . . . Protection 34 | . . . 1 . 2 . . . . 2 2 1 5 . 1 12 7 1 Artifact . | . . . . . . . . . . . . . . . . . . . Weapon 33 | 2 3 3 . 1 2 . . . . . . . . . 1 1 10 10 Energy Gun 6 | 2 . . . . . . . . . . . . . . . . 2 2 Energy Cannon 4 | . . . . . . . . . . . . . . . 1 . 3 . Ballistic Gun 4 | . 2 . . . . . . . . . . . . . . . 2 . Ballistic Cannon 12 | . . 2 . . . . . . . . . . . . . . 2 8 Launcher 5 | . 1 1 . . 2 . . . . . . . . . . . 1 . Special Weapon . | . . . . . . . . . . . . . . . . . . . Impact Weapon . | . . . . . . . . . . . . . . . . . . . Slashing Weapon 1 | . . . . 1 . . . . . . . . . . . . . . Piercing Weapon 1 | . . . . . . . . . . . . . . . . 1 . . Special Melee Weapon . | . . . . . . . . . . . . . . . . . . . Unidentified Prototypes 12 | . . . . 1 1 . . . . . 2 . 1 . 1 3 2 1 Corrupted Parts 1 | . . . . . . . . . . . . . 1 . . . . . System Corruption 1 | . . . . . . . . . . . . . 1 . . . . . Parts Lost 97 | . . 3 . 1 3 . . . . 3 . 4 1 . 2 32 32 16 Power 18 | . . 1 . 1 1 . . . . 1 . 1 . . 1 6 3 3 Propulsion 31 | . . 1 . . . . . . . 1 . 1 . . . 15 9 4 Utility 38 | . . . . . 1 . . . . 1 . 2 1 . 1 10 15 7 Weapon 10 | . . 1 . . 1 . . . . . . . . . . 1 5 2 Highest Loss Streak 13 | . . 2 . 1 2 . . . . 3 . 2 1 . 2 13 10 11 To Critical Strikes 2 | . . . . . . . . . . . . 2 . . . . . . Average Backups 11 | 2 10 13 11 11 5 5 4 5 4 4 4 4 4 5 4 16 14 15 Power 1 | . 2 1 . . . 1 1 1 1 . . . 1 1 . 1 1 2 Propulsion 2 | 1 4 3 3 1 1 1 1 1 1 . 1 1 . . . 4 2 1 Utility 3 | . . . 1 3 1 2 2 2 2 2 2 1 2 3 2 8 5 2 Weapon 3 | . 3 7 6 6 1 1 . 1 . . 1 1 1 1 1 1 4 8 Tool/Special . | . . . . . . . . . . . . . . . . . . . Unused Backups 53 | . 6 7 . 3 5 . . . . 1 3 2 . 1 2 6 9 8 Power 9 | . 1 1 . . . . . . . 1 . . . 1 . 1 2 2 Propulsion 17 | . 5 2 . 1 1 . . . . . . 2 . . . 1 2 3 Utility 14 | . . 2 . . 1 . . . . . 3 . . . 1 4 2 1 Weapon 12 | . . 2 . 2 2 . . . . . . . . . 1 . 3 2 Tool/Special 1 | . . . . . 1 . . . . . . . . . . . . . Average Slot Usage (%) 84 | . 96 98 97 94 63 77 77 77 77 72 78 87 95 100 95 90 67 75 Engine 3 | . 14 14 14 13 . . . . . . . . . . . . . . Core 1 | . . . . . 6 11 11 11 11 9 9 5 . . . . . . Reactor 4 | . . . . . . . . . . . . 4 9 10 9 8 6 10 Treads 7 | . 28 26 14 . . . . . . . . 3 5 5 2 . 10 10 Leg 7 | . . . . . . . . . . . . 16 26 26 28 27 . . Wheel 3 | . . 1 14 27 . . . . . . . . . . . . . . Flight 1 | . . . . . 4 5 5 5 5 8 12 4 . . . . . . Device 10 | . 5 14 12 . 15 16 16 16 16 14 12 8 8 5 7 6 15 18 Storage 5 | . 20 14 14 14 . . . . . . . . . . . 3 4 3 Processor 12 | . . . . . 6 11 11 11 11 5 11 20 21 21 21 19 16 20 Hackware 3 | . . . . . 17 22 22 22 22 20 18 6 5 5 5 1 . . Protection 7 | . . . 1 14 2 5 5 5 5 9 9 9 11 15 12 15 6 . Ballistic Gun 2 | . 9 18 . . . . . . . . . . . . . . . . Ballistic Cannon 3 | . . 7 23 17 . . . . . . . . . . . . . 9 Slashing Weapon 2 | . . . . 5 5 5 5 5 5 5 4 4 5 5 5 4 1 . Peak Build Rating 180 | 6 12 15 17 24 90 90 94 90 94 100 118 118 121 121 128 151 165 180 Average Rating 90 | 5 8 12 15 18 80 90 90 90 90 92 113 93 111 120 119 132 129 157 On Entrance 72 | . 6 12 15 16 24 90 90 90 90 90 92 118 100 121 121 128 27 156 Naked Turns . | . . . . . . . . . . . . . . . . . . . Heaviest Build 151 | 13 35 38 36 42 24 24 24 24 32 34 44 49 74 74 88 146 151 150 Greatest Support 240 | 40 40 40 12 24 24 24 24 24 24 30 38 115 115 115 145 169 240 225 Greatest Overweight (x) 17 | . . 3 2 2 . . . . 1 1 1 1 . . . 14 17 2 Average Overweight (x) . | . . . 2 1 . . . . . . . . . . . . . . Largest Inventory Capacity 25 | 8 15 15 15 15 15 5 5 5 5 5 15 5 5 5 5 25 20 20 Average Capacity 13 | 7 13 15 15 15 5 5 5 5 5 5 5 5 5 5 5 18 20 19 Most Carried 20 | 6 15 15 15 15 15 5 5 5 5 5 5 5 5 5 5 20 20 20 Average Carried 12 | 3 10 14 14 14 4 5 4 5 4 4 4 4 4 4 4 16 16 17 Final Capacity 20 | 8 15 15 15 15 5 5 5 5 5 5 5 5 5 5 5 20 20 5 Final Carried 15 | 6 15 15 14 15 5 5 5 5 5 4 5 5 5 5 4 9 15 5 Class Distribution -------------------- 37% | Mutant 29% | Scavenger-Mutant 13% | Hacker-Mutant 10% | Commander-Mutant 3% | Assassin 3% | Scavenger-Skirmisher Dominant Class ---------------- Mutant | -10/Materials Mutant | -10/Subcaves Mutant | -9/Recycling Mutant | -9/Scraptown Hacker-Mutant | -6/Factory Hacker-Mutant | -6/Lower Caves Hacker-Mutant | -6/Lower Caves Hacker-Mutant | -6/Data Miner Hacker-Mutant | -5/Proximity Caves Hacker-Mutant | -5/Factory Hacker-Mutant | -4/Factory Scavenger-Mutant | -4/Extension Commander-Mutant | -4/Cetus Commander-Mutant | -4/Archives Commander-Mutant | -4/Hub_04(d) Scavenger-Mutant | -3/Research Scavenger-Mutant | -2/Research Scavenger-Skirmisher | -1/Access Resources | -11 -10 -10 -9 -9 -6 -6 -6 -6 -5 -5 -4 -4 -4 -4 -4 -3 -2 -1 ----------- Run | Yrd Mat Sub Rec Scr Fac Low Low Dat Pro Fac Fac Ext Cet Arc Hub Res Res Acc Matter Collected 5849 | 260 66 239 175 80 145 207 8 . 194 46 189 245 227 44 105 460 1602 1557 Remotely . | . . . . . . . . . . . . . . . . . . . Salvage Created 13006 | 77 199 157 88 151 162 49 60 . 205 246 331 967 97 99 2168 1420 4364 2166 Parts 605 | 4 9 18 . 4 24 1 1 . 23 11 22 32 3 4 75 62 227 85 Haulers Intercepted 8 | . 1 . . . . . . . . . . . . . 2 1 3 1 Recyclers Shooed 6 | . . . . . . . . . . . . 1 . . 1 . 1 3 Parts Field Recycled . | . . . . . . . . . . . . . . . . . . . Retrieved Matter . | . . . . . . . . . . . . . . . . . . . Parts Self-Destructed 26 | . . 3 . . . 1 3 . 19 . . . . . . . . . Prevented . | . . . . . . . . . . . . . . . . . . . Kills | -11 -10 -10 -9 -9 -6 -6 -6 -6 -5 -5 -4 -4 -4 -4 -4 -3 -2 -1 ------- Run | Yrd Mat Sub Rec Scr Fac Low Low Dat Pro Fac Fac Ext Cet Arc Hub Res Res Acc Combat Hostiles Destroyed 176 | . 5 8 . 4 9 1 4 . 14 7 9 13 2 1 4 21 50 24 Melee 55 | . . . . . 2 1 . . 4 2 9 9 . 1 4 14 8 1 Guns 8 | . 2 3 . . . . . . . . . . . . . . 1 2 Cannons 42 | . . 1 . . . . . . . . . . . . . . 30 11 AOE 54 | . 3 4 . 4 7 . 4 . 10 5 . 4 2 . . 7 2 2 Classes Destroyed 25 | 2 4 3 . 4 3 . 1 . . 2 . . . . 3 1 1 1 Worker 15 | . . . . . . . . . . 2 . . . . 4 1 2 6 Builder 15 | . 2 . . . . . . . . . . . . . 4 1 7 1 Tunneler 3 | 1 . . . . . . . . . . . . . . . . 2 . Hauler 8 | . 1 . . . . . . . . . . . . . 2 1 3 1 Recycler 11 | 1 . . 1 . . . . . . . . 2 . . 4 . 2 1 Mechanic 1 | . . . . . . . . . . . . . . . . . 1 . Operator 2 | . . . . . 1 . . . . . 1 . . . . . . . Turret 2 | . . 2 . . . . . . . . . . . . . . . . Watcher 8 | . . . . . 1 . . . . . . 1 . . 1 . 1 4 Swarmer 51 | . 3 4 . . 7 . . . 14 . 7 4 . . 1 4 7 . Saboteur 1 | . . . . . . . . . . . . . . . . . . 1 Grunt 36 | . 2 . . . . . 3 . . 3 . . 1 . . 7 6 14 Brawler 2 | . . . . . . . 1 . . 1 . . . . . . . . Duelist 1 | . . . . . . . . . . . . . . . . . . 1 Sentry 22 | . . 1 . . . . . . . . 2 7 . 1 . 5 5 1 Hunter 17 | . . . . . . . . . . 1 . 2 . . . 4 10 . Programmer 35 | . . . . . 2 1 . . . 2 . . . . 2 . 21 7 Behemoth 2 | . . . . . . . . . . . . . . . 1 . 1 . Cetus Guard 1 | . . . . . . . . . . . . . 1 . . . . . Striker 1 | . . . . . . . . . . . . . . . . 1 . . Subdweller 3 | . . 3 . . . . . . . . . . . . . . . . Federalist 1 | . . . . 1 . . . . . . . . . . . . . . Explorer 1 | . . . . 1 . . . . . . . . . . . . . . Ranger 1 | . . . . 1 . . . . . . . . . . . . . . Scrapper 1 | . . . . 1 . . . . . . . . . . . . . . Scrapoid 2 | . . . . . . . . . . . . . . . 2 . . . Thug 6 | . . . . . . . . . . . . . . . 6 . . . Savage 3 | . . . . . . . . . . . . . . . 3 . . . Butcher 2 | . . . . . . . . . . . . . . . 2 . . . Best Kill Streak 13 | 2 4 6 1 4 4 1 4 . 5 7 5 4 1 1 11 7 8 13 Combat Bots Only 6 | . 3 4 . 4 4 1 4 . 5 5 5 4 1 1 2 5 6 5 Max Kills in Single Turn 21 | 1 4 3 1 3 2 1 2 . 4 3 1 4 1 1 21 2 2 2 Gunslinging . | . . . . . . . . . . . . . . . . . . . Exploded 4 | . 3 3 . 3 2 . 2 . 4 2 . 4 1 . . 2 2 1 Melee 1 | . . . . . 1 1 . . 1 1 1 1 . 1 1 1 1 1 Uniques/NPCs Destroyed . | . . . . . . . . . . . . . . . . . . . Combat | -11 -10 -10 -9 -9 -6 -6 -6 -6 -5 -5 -4 -4 -4 -4 -4 -3 -2 -1 -------- Run | Yrd Mat Sub Rec Scr Fac Low Low Dat Pro Fac Fac Ext Cet Arc Hub Res Res Acc Hostile Shots Fired 2211 | . 31 61 . 13 191 9 12 . 24 37 71 74 21 2 60 652 607 346 Missed 757 | . 8 20 . 2 84 5 6 . 11 17 40 26 6 . 11 259 139 123 Hits 1454 | . 23 41 . 11 107 4 6 . 13 20 31 48 15 2 49 393 468 223 Melee 23 | . . . . . . . . . . . . . . . . 21 1 1 Projectile 1431 | . 23 41 . 11 107 4 6 . 13 20 31 48 15 2 49 372 467 222 AOE 2 | . . 2 . . . . . . . . . . . . . . . . Critical Strikes 81 | . . 2 . . 1 1 . . . . 1 3 1 . 7 17 34 14 Part Disruptions 7 | . . . . . 1 . . . . . . . . . . . 6 . Actively Blocked 1 | . . . . . . . . . . . . . . . . . 1 . Damage Taken 31423 | . 295 682 . 167 1335 61 118 . 224 653 376 1093 363 128 1282 8367 10814 5465 Core 3288 | . 86 72 . 38 139 . . . 58 58 . 156 . 47 154 769 777 934 Absorbed by Shields 689 | . . 151 . . . . . . . . . 32 69 . 295 142 . . Reduced by Siege Mode 516 | . . . . . . . . . . . . . . . . . 479 37 Redirected to Shielding 148 | . . . . . . . . . 21 28 15 . . . . . 84 . Ignored by Resistances 114 | . . . . . . . . . . 6 103 . . . . . 5 . Regen/Repaired (Parts) 18 | . . . . . . . . . . 18 . . . . . . . . Core Remaining (%) 60 | 100 . . . 21 . . . . 76 94 . . . . 68 40 46 41 Volleys Fired 419 | 4 22 30 3 2 13 . 6 . 4 4 . 6 10 . 1 19 240 55 Largest 3 | 2 2 2 2 1 1 . 1 . 1 1 . 1 1 . 1 1 2 3 Hottest 233 | 90 90 73 66 40 43 . 43 . 43 43 . 43 43 . 105 105 233 191 Shots Fired 634 | 8 39 55 6 2 13 . 6 . 4 4 . 6 10 . 1 19 316 145 Gun 161 | 8 38 38 . . . . . . . . . . . . . . 56 21 Cannon 398 | . . 10 6 . . . . . . . . . . . 1 10 254 117 Launcher 75 | . 1 7 . 2 13 . 6 . 4 4 . 6 10 . . 9 6 7 Special . | . . . . . . . . . . . . . . . . . . . Kinetic 254 | . 2 52 6 2 . . . . . . . . . . . . 75 117 Thermal 290 | 8 36 . . . . . . . . . . . . . 1 10 235 . Explosive 56 | . 1 3 . . 13 . 6 . 4 4 . 6 10 . . 9 . . Electromagnetic 34 | . . . . . . . . . . . . . . . . . 6 28 Robot Hit Streak 25 | 7 25 10 3 3 1 . 5 . 6 8 . . 2 . . 6 16 9 Robot Miss Streak 8 | . 2 2 1 . 2 . . . . . . 1 4 . . 2 6 8 Penetration Max 2 | . . . . . . . . . . . . . . . . . 2 . Secondary Targets . | . . . . . . . . . . . . . . . . . . . Capacitor 120 | . . . . . . . . . . . . . . . . . 120 . Shots Hit Robots 599 | 7 32 31 4 2 16 5 4 . 7 6 19 47 4 2 24 103 212 74 Core Hits 418 | 3 11 19 1 7 17 . 8 . 13 15 11 21 24 2 47 44 103 72 Critical Kills 9 | . . . . . . . . . . . . . . . . . 9 . Critical Parts Destroyed 1 | . . . . . . . . . . . . . . . . . 1 . Critical Strikes 30 | . 2 . . . 2 . . . . . 2 . . . . . 14 10 Burn 2 | . 2 . . . . . . . . . . . . . . . . . Meltdown 7 | . . . . . . . . . . . . . . . . . 7 . Destroy 3 | . . . . . . . . . . . . . . . . . 3 . Blast 9 | . . . . . . . . . . . . . . . . . . 9 Corrupt 1 | . . . . . . . . . . . . . . . . . . 1 Melee Attacks 307 | . . . . 2 32 6 . . 7 9 30 48 . 2 27 108 36 . Impact 2 | . . . . . 2 . . . . . . . . . . . . . Slashing 305 | . . . . 2 30 6 . . 7 9 30 48 . 2 27 108 36 . Piercing . | . . . . . . . . . . . . . . . . . . . Sneak Attacks 17 | . . . . . . . . . . . 1 3 . . 4 8 1 . Combat Hostiles 6 | . . . . . . . . . . . 1 . . . . 5 . . Follow-up Attacks 6 | . . . . . 1 . . . . . . . . . . 4 1 . Damage Inflicted 38407 | 93 552 830 79 465 1698 221 876 . 1019 1190 908 2601 1351 89 4623 6117 10508 5187 Guns 2154 | 93 371 324 . . . . . . . . . . . . . . 978 388 Cannons 10711 | . . 85 79 . . . . . . . . . . . . 68 7466 3013 Explosions 13522 | . 181 421 . 465 1054 . 876 . 747 991 . 293 1351 . 3350 1555 567 1671 Melee 11700 | . . . . . 644 221 . . 272 199 908 2308 . 89 1273 4494 1292 . Ramming 320 | . . . . . . . . . . . . . . . . . 205 115 Kinetic 5816 | . 18 675 79 465 . . . . . . . . . . . . 1566 3013 Thermal 7581 | 93 353 . . . . . . . . . . . . . . 68 6878 189 Explosive 7203 | . 181 155 . . 1054 . 876 . 747 991 . 293 1351 . . 1555 . . Electromagnetic 5787 | . . . . . . . . . . . . . . . 3350 . 567 1870 Impact 54 | . . . . . 54 . . . . . . . . . . . . . Slashing 11646 | . . . . . 590 221 . . 272 199 908 2308 . 89 1273 4494 1292 . Piercing . | . . . . . . . . . . . . . . . . . . . Highest Corruption 33 | . . . . . 4 5 5 5 5 2 . . 1 1 3 . 33 13 Average Corruption 14 | . . . . . 3 4 5 5 5 1 . . 1 1 1 . 23 5 Corruption Purged . | . . . . . . . . . . . . . . . . . . . Corruption Blocked 20 | . . . . . . . . . . . . . . . . . 19 1 Effects 183 | . . . . . 7 6 1 . 5 2 . . 2 2 2 . 144 12 Message Errors 33 | . . . . . . 2 . . 1 . . . . . 1 . 27 2 Matter Fused 37 | . . . . . 1 1 1 . 1 . . . 1 1 . . 29 2 Heat Flow Errors 26 | . . . . . 1 1 . . . 1 . . 1 1 1 . 19 1 Energy Discharges 22 | . . . . . 4 1 . . 1 . . . . . . . 16 . Parts Rejected 5 | . . . . . . . . . . . . . . . . . 3 2 Parts Fused 1 | . . . . . . . . . . . . . . . . . 1 . Data Loss (minor) 17 | . . . . . 1 1 . . 1 . . . . . . . 10 4 Data Loss (major) 12 | . . . . . . . . . 1 1 . . . . . . 9 1 Misfires 6 | . . . . . . . . . . . . . . . . . 6 . Alerts 1 | . . . . . . . . . . . . . . . . . 1 . Misdirections 5 | . . . . . . . . . . . . . . . . . 5 . Weapon Failures 18 | . . . . . . . . . . . . . . . . . 18 . Overload Shots . | . . . . . . . . . . . . . . . . . . . Overflow Damage 1445 | . 3 . . 19 85 47 . . 80 38 67 108 26 . 232 236 378 126 Projectiles 462 | . . . . . . . . . . . . . . . . 4 332 126 Explosions 379 | . 3 . . 19 44 . . . 59 38 . 31 26 . 55 104 . . Melee 604 | . . . . . 41 47 . . 21 . 67 77 . . 177 128 46 . Knockbacks 41 | . . . 1 . . . . . . . . . . . . . 8 32 Impact 4 | . . . . . . . . . . . . . . . . . 1 3 Kinetic 36 | . . . 1 . . . . . . . . . . . . . 7 28 Secondary 1 | . . . . . . . . . . . . . . . . . . 1 Self-Inflicted Damage 808 | . . 90 . 33 32 . . . 15 238 . 10 . . 152 43 76 119 Shots 34 | . . 2 . 2 1 . . . 1 3 . 1 . . 2 2 9 11 Rammed 28 | . . . . . . . . . . . . . . . . . 17 11 Targets Rammed 30 | . . . . . . . . . . . . . . . . . 19 11 Kicked . | . . . . . . . . . . . . . . . . . . . Crushed 2 | . . . . . . . . . . . . . . . . . 2 . Highest Temperature 595 | 90 458 3 4 . 175 193 45 . 12 106 130 54 134 108 198 300 595 55 Average Temperature 101 | 41 205 3 2 . 69 99 19 . 6 42 32 14 31 48 83 97 155 55 Received Heat Transfer 2723 | . 150 133 . . 183 . 54 . . 111 . 116 47 30 265 698 414 522 Effects 23 | . 3 . . . . . . . . . . . . . . 1 19 . Shutdowns 7 | . 2 . . . . . . . . . . . . . . . 5 . Energy Bleed 1 | . . . . . . . . . . . . . . . . . 1 . Interference 3 | . 1 . . . . . . . . . . . . . . . 2 . Short Circuit 3 | . . . . . . . . . . . . . . . . 1 2 . Damage (minor) 5 | . . . . . . . . . . . . . . . . . 5 . Damage (major) 4 | . . . . . . . . . . . . . . . . . 4 . Siege Activations 10 | . . . . . . . . . . . . . . . . . 8 2 Total Turns 198 | . . . . . . . . . . . . . . . . . 175 23 Longest Duration 32 | . . . . . . . . . . . . . . . . . 32 15 Martial Activations . | . . . . . . . . . . . . . . . . . . . Shielding Activations . | . . . . . . . . . . . . . . . . . . . Robots Disrupted 5 | . . . . . . . . . . . . . . . 1 3 1 . Combat Hostiles 5 | . . . . . . . . . . . . . . . 1 3 1 . Robots Corrupted 14 | . . . . . . . . . . . . . . . 3 . 3 8 Combat Hostiles 10 | . . . . . . . . . . . . . . . . . 2 8 Parts Fried 45 | . . . . . . . . . . . . . . . 20 . 10 15 Impact Corruptions 2 | . . . . . . . . . . . . . . . . . 2 . Robots Melted 8 | . . . . . . . . . . . . . . . . . 8 . Combat Hostiles 7 | . . . . . . . . . . . . . . . . . 7 . Parts Melted 32 | 1 2 . . 2 . . . . . . . 1 . . 1 . 25 . Heat Transferred 7311 | 248 1078 . . . . . . . . . . . . . . 74 5661 250 Parts Sabotaged 3 | . . . . . . . . . . . . . . . . . 2 1 Parts Stolen . | . . . . . . . . . . . . . . . . . . . Parts Stripped . | . . . . . . . . . . . . . . . . . . . Power Chain Reactions 4 | . . . . . . . . . . . . . . . 1 . . 3 Alert | -11 -10 -10 -9 -9 -6 -6 -6 -6 -5 -5 -4 -4 -4 -4 -4 -3 -2 -1 ------- Run | Yrd Mat Sub Rec Scr Fac Low Low Dat Pro Fac Fac Ext Cet Arc Hub Res Res Acc Maximum Alert Level 4 | . . . . . 1 . . . . 2 2 1 3 2 4 3 4 4 Low Security (%) 41 | 100 100 . 100 . 81 . . . . 44 . 88 6 . 29 5 41 . Level 1 28 | . . . . . 18 . . . . 34 77 11 52 88 25 65 11 . Level 2 7 | . . . . . . . . . . 20 22 . 14 11 42 7 8 . Level 3 19 | . . . . . . . . . . . . . 25 . . 21 31 85 Level 4 3 | . . . . . . . . . . . . . . . 1 . 7 14 Level 5 . | . . . . . . . . . . . . . . . . . . . High Security . | . . . . . . . . . . . . . . . . . . . Max Security . | . . . . . . . . . . . . . . . . . . . Peak Influence 1288 | 10 86 . 71 . 264 . . . . 598 464 327 748 423 1288 842 1214 1233 Initial 727 | . . . 71 . . . . . . 166 287 140 182 283 81 675 127 727 Average 357 | . 17 . 11 . 111 . . . . 265 318 140 451 325 341 414 465 918 Influence Increases 9790 | 10 165 215 12 . 754 30 135 . 325 632 351 800 726 190 1623 828 2041 953 Destroy 0b10 Robot/C 4220 | . 100 140 . . 260 20 80 . 280 140 180 400 240 80 280 420 1120 480 Destroy 0b10 Robot/NC 355 | 10 15 . 5 . 10 . . . . 10 5 20 10 . 90 15 100 65 Destroy Leader 788 | . 22 . . . 62 10 10 . 30 30 30 54 10 . 68 102 270 90 Allied During Kill 1083 | . . . . . 14 . . . . . . 211 260 80 426 . 92 . Successful Hack 152 | . 21 . 5 . 32 . . . . . 64 12 10 . 8 . . . Disable Machine 585 | . . . . . . . . . . 135 . 15 . 30 225 15 120 45 Destroy Structure 1542 | . 7 . 2 . 46 . . . . 152 12 88 196 . 496 156 204 183 Partial Spotted 120 | . . . . . 75 . . . . 15 15 . . . . . 15 . Lose Combat Pursuer 945 | . . 75 . . 255 . 45 . 15 150 45 . . . 30 120 120 90 Influence Decreases 8596 | 10 165 66 161 . 550 157 85 127 60 309 651 761 345 663 570 1889 1055 972 Entered New Map 2768 | . . . 78 . . 77 15 127 . 99 301 148 145 425 154 613 100 486 Time Decay 3638 | 10 165 46 83 . 247 80 70 . 60 180 190 398 190 198 206 636 553 326 Lost Part 902 | . . 20 . . 30 . . . . 30 . 40 10 . 20 320 272 160 Lost Ally 400 | . . . . . 80 . . . . . 10 80 . 40 40 20 130 . Purge Threat 888 | . . . . . 193 . . . . . 150 95 . . 150 300 . . Squads Dispatched 52 | . . . . . 7 . . . . 4 5 2 1 . 3 9 16 5 Investigation 14 | . . . . . 2 . . . . 1 2 2 1 . 1 3 2 . Extermination 12 | . . . . . 2 . . . . . 1 . . . 1 . 7 1 Reinforcement 17 | . . . . . 1 . . . . 2 2 . . . 1 6 2 3 Assault 3 | . . . . . . . . . . . . . . . . . 2 1 Garrison 6 | . . . . . 2 . . . . 1 . . . . . . 3 . Intercept . | . . . . . . . . . . . . . . . . . . . Searches Triggered . | . . . . . . . . . . . . . . . . . . . Data Miner Redirects 7 | . . . . . . . . . . 1 1 2 . . . . 2 1 Construction Impeded 5 | . . . . . 1 . . . . . . . . . . 1 1 2 Haulers Reinforced 2 | . . . . . . . . . . . . . . . . 1 1 . Active Scanning Responses . | . . . . . . . . . . . . . . . . . . . Cargo Convoy Interrupts . | . . . . . . . . . . . . . . . . . . . Stealth | -11 -10 -10 -9 -9 -6 -6 -6 -6 -5 -5 -4 -4 -4 -4 -4 -3 -2 -1 --------- Run | Yrd Mat Sub Rec Scr Fac Low Low Dat Pro Fac Fac Ext Cet Arc Hub Res Res Acc Distress Signals 22 | . . . . . . . . . . 1 . 1 2 . 1 9 4 4 Communications Jammed 99 | . . . . . . . . . . . . 44 33 . 22 . . . Distress Signals 98 | . . . . . . . . . . . . 44 33 . 21 . . . Times Spotted 345 | . 8 14 . 11 30 1 7 . 11 21 16 15 14 4 19 43 77 54 Peak Tracking Total 13 | . 4 6 . 7 11 1 4 . 6 10 5 2 5 3 5 9 5 13 Tactical Retreats 34 | . . 1 . . 7 . 1 . 1 4 2 . . . 1 4 8 5 Traps | -11 -10 -10 -9 -9 -6 -6 -6 -6 -5 -5 -4 -4 -4 -4 -4 -3 -2 -1 ------- Run | Yrd Mat Sub Rec Scr Fac Low Low Dat Pro Fac Fac Ext Cet Arc Hub Res Res Acc Traps Triggered 11 | . . 2 . . 1 . . . . . 1 2 . . . 3 2 . Indirectly . | . . . . . . . . . . . . . . . . . . . Trap Hack Attempts . | . . . . . . . . . . . . . . . . . . . Triggered . | . . . . . . . . . . . . . . . . . . . Disarmed . | . . . . . . . . . . . . . . . . . . . Reprogrammed . | . . . . . . . . . . . . . . . . . . . Reused . | . . . . . . . . . . . . . . . . . . . Traps Extracted . | . . . . . . . . . . . . . . . . . . . Installed . | . . . . . . . . . . . . . . . . . . . Triggered . | . . . . . . . . . . . . . . . . . . . Machines | -11 -10 -10 -9 -9 -6 -6 -6 -6 -5 -5 -4 -4 -4 -4 -4 -3 -2 -1 ---------- Run | Yrd Mat Sub Rec Scr Fac Low Low Dat Pro Fac Fac Ext Cet Arc Hub Res Res Acc Machines Disabled 44 | . . 4 . 1 . . . . . 9 . 1 . 2 15 1 8 3 Max in Single Turn 14 | . . 2 . 1 . . . . . 3 . 1 . . 14 1 1 1 Garrison Access 8 | . . . . . . . . . . 1 3 . . . 1 2 1 . Network Hub 2 | . . . . . . . . . . . . . . . 2 . . . Energy Cycler 1 | . . . . . . . . . . . . . . . . . . 1 Machines Repaired . | . . . . . . . . . . . . . . . . . . . Machines Dismantled . | . . . . . . . . . . . . . . . . . . . Machines Sabotaged . | . . . . . . . . . . . . . . . . . . . Overloaded Fab Kills . | . . . . . . . . . . . . . . . . . . . Hacking | -11 -10 -10 -9 -9 -6 -6 -6 -6 -5 -5 -4 -4 -4 -4 -4 -3 -2 -1 --------- Run | Yrd Mat Sub Rec Scr Fac Low Low Dat Pro Fac Fac Ext Cet Arc Hub Res Res Acc Machines Accessed 75 | . 2 1 5 9 10 2 . 4 . 4 9 9 2 1 4 8 5 . Terminals 31 | . 2 . 2 . 6 . . . . 1 4 8 2 . 3 2 1 . Fabricators . | . . . . . . . . . . . . . . . . . . . Repair Stations 2 | . . . . . 1 . . . . 1 . . . . . . . . Recycling Units 15 | . . . 3 . 2 . . . . 1 2 1 . . . 3 3 . Scanalyzers 2 | . . . . . 1 . . . . . . . . . . 1 . . Garrison Access 8 | . . . . . . . . . . 1 3 . . . 1 2 1 . Total Hacks 242 | . 4 8 9 40 29 4 . 27 . 10 21 20 6 25 8 21 10 . Successful 174 | . 2 8 6 40 9 4 . 27 . 7 14 11 4 25 5 9 3 . Failed 68 | . 2 . 3 . 20 . . . . 3 7 9 2 . 3 12 7 . Catastrophic 12 | . . . 1 . 3 . . . . . 2 2 2 . . 2 . . Database Lockouts . | . . . . . . . . . . . . . . . . . . . Manual 53 | . . . . . 16 . . . . 3 11 9 . . . 6 8 . Terminals 88 | . 4 . 4 . 22 . . . . 3 13 19 6 . 6 9 2 . Fabricators . | . . . . . . . . . . . . . . . . . . . Repair Stations 4 | . . . . . 2 . . . . 2 . . . . . . . . Recycling Units 25 | . . . 5 . 2 . . . . 3 2 1 . . . 6 6 . Scanalyzers 5 | . . . . . 3 . . . . . . . . . . 2 . . Garrison Access 16 | . . . . . . . . . . 2 6 . . . 2 4 2 . Terminal Hacks 144 | . 2 8 3 40 3 4 . 27 . 3 8 10 4 25 4 3 . . Record 101 | . . 8 . 38 1 3 . 11 . . 4 5 4 25 2 . . . Part Schematic 8 | . . . . . . . . 8 . . . . . . . . . . Robot Schematic 5 | . . . . . . . . 5 . . . . . . . . . . Robot Analysis 2 | . . . 1 . . . . . . . . 1 . . . . . . Prototype ID Bank 3 | . . . . . . . . 3 . . . . . . . . . . Open Door 2 | . . . . 1 . 1 . . . . . . . . . . . . Level Access Points 2 | . . . . . . . . . . 1 1 . . . . . . . Branch Access Points 2 | . 1 . . . . . . . . . 1 . . . . . . . Terminal Index 2 | . . . . . . . . . . 1 . . . . . 1 . . Alert Level 4 | . . . 1 . . . . . . 1 . 1 . . 1 . . . Unreport Threat 7 | . . . . . 2 . . . . . 1 1 . . 1 2 . . Locate Traps 2 | . 1 . . . . . . . . . . 1 . . . . . . Hauler Manifests 1 | . . . . . . . . . . . 1 . . . . . . . Zone Layout 2 | . . . 1 . . . . . . . . 1 . . . . . . Proto ID Catalog 1 | . . . . 1 . . . . . . . . . . . . . . Fabricator Hacks . | . . . . . . . . . . . . . . . . . . . Repair Station Hacks 3 | . . . . . 1 . . . . 2 . . . . . . . . Scan Component 1 | . . . . . . . . . . 1 . . . . . . . . Repair 1 | . . . . . . . . . . 1 . . . . . . . . Refit 1 | . . . . . 1 . . . . . . . . . . . . . Recycling Unit Hacks 3 | . . . 3 . . . . . . . . . . . . . . . Retrieve Components 3 | . . . 3 . . . . . . . . . . . . . . . Scanalyzer 3 | . . . . . 2 . . . . . . . . . . 1 . . Insert Component 2 | . . . . . 1 . . . . . . . . . . 1 . . Analyze 1 | . . . . . 1 . . . . . . . . . . . . . Garrison Access Hacks 8 | . . . . . . . . . . 1 3 . . . 1 2 1 . Seal Access 8 | . . . . . . . . . . 1 3 . . . 1 2 1 . Unauthorized Hacks 13 | . . . . . 3 . . . . 1 3 1 . . . 3 2 . Terminals 2 | . . . . . 1 . . . . . 1 . . . . . . . Assimilate 1 | . . . . . . . . . . . 1 . . . . . . . Operators 1 | . . . . . 1 . . . . . . . . . . . . . Fabricators . | . . . . . . . . . . . . . . . . . . . Repair Stations 11 | . . . . . 2 . . . . 1 2 1 . . . 3 2 . Recycling Units . | . . . . . . . . . . . . . . . . . . . Fedlink 7 | . . . . . 1 . . . . 1 2 . . . . 2 1 . Scrapoids 3 | . . . . . 1 . . . . . . 1 . . . . 1 . Scraphulk 1 | . . . . . . . . . . . . . . . . 1 . . Scanalyzers . | . . . . . . . . . . . . . . . . . . . Garrison Access . | . . . . . . . . . . . . . . . . . . . Data Cores Recovered 1 | . . . . . 1 . . . . . . . . . . . . . Used . | . . . . . . . . . . . . . . . . . . . Hacking Detections 27 | . . . 2 . 7 . . . . 1 3 6 2 . 2 3 1 . Full Trace Events 3 | . . . . . . . . . . . . 1 1 . 1 . . . Feedback Events 2 | . . . . . . . . . . . . 1 . . 1 . . . Corruption 1 | . . . . . . . . . . . . . . . 1 . . . Hackware Fried 1 | . . . . . . . . . . . . 1 . . . . . . Feedback Blocked . | . . . . . . . . . . . . . . . . . . . Robot Schematics Acquired 5 | . . . . . . . . 5 . . . . . . . . . . Robots Built . | . . . . . . . . . . . . . . . . . . . Authchips . | . . . . . . . . . . . . . . . . . . . Time . | . . . . . . . . . . . . . . . . . . . Total Robot Build Rating . | . . . . . . . . . . . . . . . . . . . Part Schematics Acquired 9 | . . . . . 1 . . 8 . . . . . . . . . . Parts Built . | . . . . . . . . . . . . . . . . . . . Authchips . | . . . . . . . . . . . . . . . . . . . Time . | . . . . . . . . . . . . . . . . . . . Total Part Build Rating . | . . . . . . . . . . . . . . . . . . . Parts Repaired 1 | . . . . . . . . . . 1 . . . . . . . . Time 26 | . . . . . . . . . . 26 . . . . . . . . Parts Recycled . | . . . . . . . . . . . . . . . . . . . Recycled Matter . | . . . . . . . . . . . . . . . . . . . Retrieved Matter . | . . . . . . . . . . . . . . . . . . . Retrieved Components 6 | . . . 6 . . . . . . . . . . . . . . . Parts Scanalyzed 2 | . . . . . 1 . . . . . . . . . . 1 . . Part Schematics Acquired 1 | . . . . . 1 . . . . . . . . . . . . . Parts Damaged 1 | . . . . . 1 . . . . . . . . . . . . . Bothacking | -11 -10 -10 -9 -9 -6 -6 -6 -6 -5 -5 -4 -4 -4 -4 -4 -3 -2 -1 ------------ Run | Yrd Mat Sub Rec Scr Fac Low Low Dat Pro Fac Fac Ext Cet Arc Hub Res Res Acc Used RIF Installer . | . . . . . . . . . . . . . . . . . . . Robots Hacked . | . . . . . . . . . . . . . . . . . . . Non-combat . | . . . . . . . . . . . . . . . . . . . Combat . | . . . . . . . . . . . . . . . . . . . Robot Hacks Applied . | . . . . . . . . . . . . . . . . . . . Relay Couplers Released . | . . . . . . . . . . . . . . . . . . . Fabnet Peak Effective % . | . . . . . . . . . . . . . . . . . . . Robots Rewired 13 | . . . . . . . . . . . . 12 . . . . 1 . Allies Hacked . | . . . . . . . . . . . . . . . . . . . Hacks Repelled . | . . . . . . . . . . . . . . . . . . . Allies | -11 -10 -10 -9 -9 -6 -6 -6 -6 -5 -5 -4 -4 -4 -4 -4 -3 -2 -1 -------- Run | Yrd Mat Sub Rec Scr Fac Low Low Dat Pro Fac Fac Ext Cet Arc Hub Res Res Acc Total Allies 39 | . . . . . 5 . . . . . 1 27 . . . . 6 . Largest Group 23 | . . . . . 5 . . . . . 1 23 19 19 16 . 5 . Highest-Rated Group 1097 | . . . . . 146 . . . . . 10 1097 911 899 664 . 326 . Highest-Rated Ally 159 | . . . . . 31 . . . . . 10 159 159 159 47 . 67 . Total Orders 5 | . . . . . . . . . . . . 1 . . . 2 2 . STAY 1 | . . . . . . . . . . . . 1 . . . . . . EXPLORE 4 | . . . . . . . . . . . . . . . . 2 2 . Ally Attacks 373 | . . . . . 35 . . . . . . 65 78 38 95 . 62 . Total Damage 8774 | . . . . . 578 . . . . . . 1708 1976 814 2123 . 1575 . Kills 50 | . . . . . 5 . . . . . . 8 12 3 14 . 8 . Allies Corrupted 4 | . . . . . . . . . . . . . . . 3 . 1 . Allies Melted . | . . . . . . . . . . . . . . . . . . . Intel | -11 -10 -10 -9 -9 -6 -6 -6 -6 -5 -5 -4 -4 -4 -4 -4 -3 -2 -1 ------- Run | Yrd Mat Sub Rec Scr Fac Low Low Dat Pro Fac Fac Ext Cet Arc Hub Res Res Acc Active Infowar (turns) 10394 | . . . . . 683 166 142 32 144 336 396 1156 398 417 429 2240 3122 733 Optics 8293 | . . . . . . . . . . . 359 1156 398 417 429 2240 2652 642 Sensors 981 | . . . . . . . . . . . . . . . . . 834 147 Terrain 544 | . . . . . . . . . . . . . . . . . 235 309 Seismic 1933 | . . . . . 683 166 142 32 144 336 396 34 . . . . . . Machine Analysis 784 | . . . . . . . . . . . . . . . . . 51 733 Jamming 2259 | . . . . . 46 . . . . . . 1089 398 417 309 . . . Robot Analysis Total 2 | . . . 1 . . . . . . . . 1 . . . . . . Derelict Logs Recovered 5 | . . 1 . 1 . 1 . . 2 . . . . . . . . . Drone Launches 9 | . . . . . . . . . . . . . . . . 4 5 . Drone Recoveries 4 | . . . . . . . . . . . . . . . . 2 2 . Exploration | -11 -10 -10 -9 -9 -6 -6 -6 -6 -5 -5 -4 -4 -4 -4 -4 -3 -2 -1 ------------- Run | Yrd Mat Sub Rec Scr Fac Low Low Dat Pro Fac Fac Ext Cet Arc Hub Res Res Acc Turns Passed 14675 | 118 643 1284 532 1501 687 166 142 32 144 362 396 1156 398 417 429 2240 3295 733 Spaces Moved 11322 | 61 343 747 430 1396 1295 355 317 79 277 605 715 621 263 281 272 1492 1439 334 Core 75 | 5 . . . . . . . . . . . . . . . 1 22 47 Treads 2577 | 56 343 660 . . . . . . . . . 4 . . . . 1227 287 Legs 2887 | . . . . . . . . . . . . 580 263 281 272 1491 . . Wheels 1913 | . . 87 430 1396 . . . . . . . . . . . . . . Hover 190 | . . . . . . . . . . . . . . . . . 190 . Flight 3680 | . . . . . 1295 355 317 79 277 605 715 37 . . . . . . Fastest Speed 32 | 50 160 120 120 105 40 40 40 40 40 37 32 32 120 120 120 116 40 50 Average Speed 101 | 150 160 155 120 105 40 40 40 40 40 38 37 133 120 120 120 120 151 144 Slowest Speed 900 | 160 160 240 120 120 40 40 40 40 80 97 99 240 120 120 120 750 900 330 Overloaded Moves . | . . . . . . . . . . . . . . . . . . . Propulsion Burnouts . | . . . . . . . . . . . . . . . . . . . Robots Hopped 16 | . . . . . 2 . 1 . . 9 4 . . . . . . . Potential Cave-ins 12 | . . . . . 1 . . . . . . 6 1 . . 4 . . Cave-ins Triggered 1 | . . . . . . . . . . . . . . . . 1 . . Exploration Rate (%) 49 | 6 47 33 84 86 49 48 56 69 45 15 19 64 78 99 30 53 41 9 Regions Visited 18 Branch Regions 11 Pre-discovered Areas 4 | . . . . 2 . . . 1 . 1 . . . . . . . . Known Exits Taken 9 | . . . . . 1 1 1 1 1 1 1 . . . 1 . 1 . Unknown Exits Taken 9 | 1 1 1 1 1 . . . . . . . 1 1 1 . 1 . . Scrap Searched 15 | . . 5 . 3 . 3 2 . 2 . . . . . . . . . Spaces Dug 135 | . . . . 2 11 . . . 31 3 6 52 . . 2 12 8 8 Terrain Destroyed 1192 | . 6 72 2 51 52 . 65 . 38 80 6 105 192 . 315 86 58 64 Melee 32 | . . . . 2 11 . . . . 3 6 1 . . 2 7 . . Projectile 112 | . . 1 2 . . . . . . . . . . . . 8 58 43 AOE 1048 | . 6 71 . 49 41 . 65 . 38 77 . 104 192 . 313 71 . 21 Terrain Rammed . | . . . . . . . . . . . . . . . . . . . Walls Destroyed . | . . . . . . . . . . . . . . . . . . . Machines Disabled . | . . . . . . . . . . . . . . . . . . . Actions | -11 -10 -10 -9 -9 -6 -6 -6 -6 -5 -5 -4 -4 -4 -4 -4 -3 -2 -1 --------- Run | Yrd Mat Sub Rec Scr Fac Low Low Dat Pro Fac Fac Ext Cet Arc Hub Res Res Acc Total 13601 | 76 401 815 441 1419 1407 369 323 78 295 710 795 875 336 358 338 1811 2291 463 Wait 850 | . 6 13 . . 18 9 . . . 86 15 109 41 74 17 82 359 21 Move 11272 | 60 342 746 429 1395 1290 354 314 78 276 588 706 620 262 280 271 1490 1438 333 Hop 14 | . . . . . 2 . 1 . . 7 4 . . . . . . . Pick Up 142 | 6 16 8 1 8 9 . . . 1 3 7 4 1 1 5 20 40 12 Fast Attach 123 | 6 2 . 1 1 12 . . . . 2 11 10 4 . 4 17 52 1 Attach 92 | . 1 2 2 2 8 . 1 . 3 5 1 4 2 . 4 18 30 9 Detach 45 | . 2 . 2 . 4 . 1 . 3 3 3 2 1 . 1 6 17 . Swap 79 | . 2 6 1 1 1 . . . . 1 . 2 6 . 2 28 16 13 Drop 152 | . 8 10 2 8 20 . . . 1 2 12 9 9 1 6 22 34 8 Fire 419 | 4 22 30 3 2 13 . 6 . 4 4 . 6 10 . 1 19 240 55 Melee 300 | . . . . 2 30 6 . . 7 9 30 48 . 2 27 104 35 . Ram 2 | . . . . . . . . . . . . . . . . . . 2 Kick . | . . . . . . . . . . . . . . . . . . . Crush 28 | . . . . . . . . . . . . . . . . . 19 9 Escape Stasis 7 | . . . . . . . . . . . 6 . . . . 1 . . Rewire 76 | . . . . . . . . . . . . 61 . . . 4 11 . Trap . | . . . . . . . . . . . . . . . . . . . Miscellaneous . | . . . . . . . . . . . . . . . . . . . Route ------- -11/Scrapyard -10/Materials (discovered 3 exits: [*Mat] / Min / *Sub) -10/Subcaves (discovered 3 exits: [*Mat] / *Rec / *Scr) -9/Recycling (discovered 2 exits: [*Fac] / *Scr) -9/Scraptown (discovered 2 exits: *Fac x2) -6/Factory -6/Lower Caves -6/Lower Caves (discovered 2 exits: *Fac / *Dat) -6/Data Miner -5/Proximity Caves -5/Factory (discovered 4 exits: *Fac x4) -4/Factory (discovered 9 exits: Res x4 / Upp x2 / *Ext x2 / Arm) -4/Extension (discovered 2 exits: *Res / *Cet) -4/Cetus (discovered 3 exits: *Res x2 / *Arc) -4/Archives (discovered 3 exits: *Res / *Hub x2) -4/Hub_04(d) -3/Research -2/Research -1/Access To Epsilon Eridani History --------- Turn | Location | Event 12 | -11/Scrapyard | Discovered new exit (range 16) 119 | -11/Scrapyard | Entered Materials 120 | -10/Materials | Met a group of wandering Federalists 305 | -10/Materials | Build established: Mutant 473 | -10/Materials | Discovered new exit (range 16) 570 | -10/Materials | Identified exit to Mines 747 | -10/Materials | Discovered new exit (range 11) 762 | -10/Materials | Entered Subcaves 763 | -10/Subcaves | Continued accompanying wandering Federalists (5) 777 | -10/Subcaves | Ambushed by Subdwellers from Twisted Machinery 894 | -10/Subcaves | Learned location of 1 exit from Materials 1091 | -10/Subcaves | Ambushed by Subdweller buried in earth 1199 | -10/Subcaves | Discovered new exit (range 9) 1585 | -10/Subcaves | Visited 4L-MR0's lab 1615 | -10/Subcaves | Found Prototype Flight Unit 1783 | -10/Subcaves | Shifting Twisted Machinery released Mak. Hacking Suite 1794 | -10/Subcaves | Shifting Twisted Machinery released Mak. Leg 1850 | -10/Subcaves | Core integrity fell below 50% 1938 | -10/Subcaves | Discovered new exit (range 14) 2046 | -10/Subcaves | Entered Recycling 2439 | -9/Recycling | Discovered new exit (range 16) 2546 | -9/Recycling | Scanned before Scraplab entrance 2563 | -9/Recycling | Entered Scraplab 2576 | -9/Recycling | Discovered new exit (range 3) 2578 | -9/Recycling | Entered Scraptown 2679 | -9/Scraptown | Heard Great Nut preacher, LISTEN AND RECITE! 2823 | -9/Scraptown | Scanned Subdweller tech in exchange for log data 2827 | -9/Scraptown | Learned Factory stockpile data 2843 | -9/Scraptown | Discovered new exit (range 7) 2916 | -9/Scraptown | Visited Assassins FH 2958 | -9/Scraptown | Visited Spacefarers 3028 | -9/Scraptown | Visited Cyclists 3087 | -9/Scraptown | Visited UFD Registry 3087 | -9/Scraptown | Registered with UFD as "Shockslider" 3112 | -9/Scraptown | Visited Science Testing Area 3155 | -9/Scraptown | Visited Red Mages 3226 | -9/Scraptown | Entered Cyclist Reading Room 3232 | -9/Scraptown | Learned location of Exiles (-9) 3232 | -9/Scraptown | Learned location of Zion (-7) 3497 | -9/Scraptown | Visited Sword Containment 3547 | -9/Scraptown | Visited Research Penetration Think Tank 3577 | -9/Scraptown | Visited Science Guys 3783 | -9/Scraptown | Visited LU-1G1's Boring Crew 3843 | -9/Scraptown | Visited Scrap Suit Storage 3858 | -9/Scraptown | Found Scrap Suit 3891 | -9/Scraptown | Met Optimus 3891 | -9/Scraptown | Accepted into 0bPrime 3981 | -9/Scraptown | Visited Junk Repository 4014 | -9/Scraptown | Civil war broke out across Scraptown 4048 | -9/Scraptown | Discovered new exit (range 5) 4079 | -9/Scraptown | Entered Factory 4079 | -6/Factory | Evolved 8 slots: Power x1, Propulsion x2, Utility x5 4081 | -6/Factory | Identified Flightbrick 4082 | -6/Factory | Lost 5 allies 4082 | -6/Factory | Attached Flightbrick, gained temporary slots: Utility x3 4269 | -6/Factory | Loaded intel: 8 recycling unit locations 4306 | -6/Factory | Spotted B-75 Beast 4532 | -6/Factory | Build established: Hacker-Mutant 4624 | -6/Factory | Scrapoid reinforcements arrived 4629 | -6/Factory | Garrison activated, responded to threat 4756 | -6/Factory | Discovered new exit (range 3) 4765 | -6/Factory | Identified exit to Lower Caves 4766 | -6/Factory | Entered Lower Caves 4772 | -6/Lower Caves | Entered an active Warlord outpost 4899 | -6/Lower Caves | Learned Factory emergency access door positions 4919 | -6/Lower Caves | Discovered new exit (range 7) 4921 | -6/Lower Caves | Identified exit to Lower Caves 4932 | -6/Lower Caves | Entered another Lower Caves area 4932 | -6/Lower Caves | Discovered new exit (range 12) 4936 | -6/Lower Caves | Identified exit to Factory 5035 | -6/Lower Caves | Encountered a Warlord checkpoint 5037 | -6/Lower Caves | Discovered new exit (range 9) 5042 | -6/Lower Caves | Identified exit to Data Miner 5074 | -6/Lower Caves | Entered Data Miner 5074 | -6/Data Miner | Discovered new exit (range 6) 5082 | -6/Data Miner | Met Data Miner 5090 | -6/Data Miner | Learned location of Section 7 (-2) 5090 | -6/Data Miner | Acquired the access code to Warlord's prototype stash 5097 | -6/Data Miner | Received God Mode back door access code from Data Miner 5105 | -6/Data Miner | Identified exit to Proximity Caves 5106 | -6/Data Miner | Entered Proximity Caves 5126 | -5/Proximity Caves | Spotted B-75 Beast 5182 | -5/Proximity Caves | Learned Factory interactive machine intel 5250 | -5/Proximity Caves | Entered Factory 5250 | -5/Factory | Evolved 2 slots: Propulsion x2 5252 | -5/Factory | Loaded intel: 54 interactive machine locations 5282 | -5/Factory | Repaired Seismic Detector 5525 | -5/Factory | Garrison activated, responded to threat 5534 | -5/Factory | Spotted B-75 Beast 5553 | -5/Factory | Identified exit to Factory 5569 | -5/Factory | Lost 3 parts (1p1n1u) 5585 | -5/Factory | Loaded intel: 8 recycling unit locations 5585 | -5/Factory | Learned location of Protoforge (-2) 5602 | -5/Factory | Incoming investigation squad redirected 5612 | -5/Factory | Entered another Factory area 5612 | -4/Factory | Evolved 2 slots: Utility x2 5667 | -4/Factory | Loaded intel: 8 recycling unit locations 5719 | -4/Factory | Identified exit to Research 5719 | -4/Factory | Identified exit to Upper Caves 5719 | -4/Factory | Identified exit to Extension 5719 | -4/Factory | Identified exit to Armory 5958 | -4/Factory | Incoming investigation squad redirected 6008 | -4/Factory | Entered Extension 6103 | -4/Extension | Rescued a captive Derelict 6104 | -4/Extension | Rescued a captive Derelict 6266 | -4/Extension | Mak. Hacking Suite fried by hacking feedback 6295 | -4/Extension | Incoming investigation squad redirected 6661 | -4/Extension | Build established: Scavenger-Mutant 6735 | -4/Extension | Rescued a captive Derelict 6875 | -4/Extension | Rescued a captive Derelict 6901 | -4/Extension | Rescued a captive Derelict 6902 | -4/Extension | Rescued a captive Derelict 6960 | -4/Extension | Scrapoid reinforcements arrived 6960 | -4/Extension | Incoming investigation squad redirected 6968 | -4/Extension | Rescued A7 6993 | -4/Extension | Rescued a captive Derelict 6993 | -4/Extension | Rescued a captive Derelict 7059 | -4/Extension | Rescued a captive Derelict 7077 | -4/Extension | Discovered exit to Research (range 10) 7078 | -4/Extension | Discovered new exit (range 6) 7084 | -4/Extension | Build established: Commander-Mutant 7164 | -4/Extension | Entered Cetus 7164 | -4/Cetus | Accompanied by 19 allies (A7) 7169 | -4/Cetus | Acquired a Cetus Manufacturing Module code from A7 7185 | -4/Cetus | Spotted Cetus Guard 7185 | -4/Cetus | Spotted Cetus Guard 7185 | -4/Cetus | Spotted Cetus Guard 7190 | -4/Cetus | Spotted Cetus Guard 7193 | -4/Cetus | Allies destroyed Cetus Guard 7198 | -4/Cetus | Allies destroyed Cetus Guard 7205 | -4/Cetus | Allies destroyed Cetus Guard 7207 | -4/Cetus | Allies destroyed Cetus Guard 7257 | -4/Cetus | Discovered exit to Research (range 21) 7397 | -4/Cetus | Discovered new exit (range 22) 7441 | -4/Cetus | Spotted Cetus Guard 7442 | -4/Cetus | Spotted Cetus Guard 7443 | -4/Cetus | Spotted Cetus Guard 7447 | -4/Cetus | Spotted Cetus Guard 7448 | -4/Cetus | Destroyed Cetus Guard 7455 | -4/Cetus | Discovered exit to Research (range 22) 7456 | -4/Cetus | Allies destroyed Cetus Guard 7459 | -4/Cetus | Allies destroyed Cetus Guard 7464 | -4/Cetus | Allies destroyed Cetus Guard 7472 | -4/Cetus | Met Revision 17 7562 | -4/Cetus | Entered Archives 7562 | -4/Archives | Accompanied by 19 allies (A7) 7579 | -4/Archives | Discovered new exit (range 22) 7594 | -4/Archives | Unable to access archive contents 7600 | -4/Archives | Discovered new exit (range 22) 7607 | -4/Archives | Unable to access archive contents 7641 | -4/Archives | Discovered exit to Research (range 18) 7649 | -4/Archives | Unable to access archive contents 7663 | -4/Archives | Unable to access archive contents 7979 | -4/Archives | Entered Hub_04(d) 7979 | -4/Hub_04(d) | Accompanied by 16 allies 8205 | -4/Hub_04(d) | Spotted B-86 Titan 8314 | -4/Hub_04(d) | Destroyed B-86 Titan 8374 | -4/Hub_04(d) | Discovered exit to Research (range 10) 8400 | -4/Hub_04(d) | Network Hub disabled 8400 | -4/Hub_04(d) | Network Hub disabled 8408 | -4/Hub_04(d) | Entered Research 8408 | -3/Research | Evolved 2 slots: Utility x2 8426 | -3/Research | Murdered 10 allies 8433 | -3/Research | Lost 4 allies 8608 | -3/Research | Revision forces began assault on 0b10 8640 | -3/Research | Loaded intel: 5 recycling unit locations 8650 | -3/Research | Build established: Scavenger-Mutant 8684 | -3/Research | Met up with Revision 17++ 9108 | -3/Research | Research terminal network offline 9223 | -3/Research | Spotted B-86 Titan 9707 | -3/Research | Build established: Mutant 9840 | -3/Research | Found Prototype Protection 9840 | -3/Research | Identified Centrium Heavy Armor Plating 10074 | -3/Research | Crushed by falling debris 10232 | -3/Research | Spotted Executioner 10237 | -3/Research | Spotted Striker 10391 | -3/Research | Spotted Striker 10484 | -3/Research | Destroyed Striker 10525 | -3/Research | Lost 9 parts (2p5n2u) 10582 | -3/Research | Lost 3 parts (1p1n1u) 10617 | -3/Research | Discovered new exit (range 21) 10635 | -3/Research | Core integrity fell below 50% 10648 | -3/Research | Entered another Research area 10648 | -2/Research | Evolved 2 slots: Utility x2 10658 | -2/Research | Lost 3 allies 10677 | -2/Research | Lost 13 parts (1p6n5u1w) 10992 | -2/Research | Build established: Assassin 11084 | -2/Research | Found Gamma Bomb Array 11087 | -2/Research | Found Gamma Bomb Array 11237 | -2/Research | System corruption reached 10% 11264 | -2/Research | Lost 4 parts (1p3u) 11537 | -2/Research | Lost 10 parts (1p6n2u1w) 11627 | -2/Research | Loaded intel: 5 recycling unit locations 11824 | -2/Research | Build established: Scavenger-Mutant 11953 | -2/Research | Spotted B-90 Cyclops 12057 | -2/Research | Lost 3 parts (1p1u1w) 12280 | -2/Research | Incoming investigation squad redirected 12283 | -2/Research | Scrapoid reinforcements arrived 12286 | -2/Research | Spotted B-90 Cyclops 12301 | -2/Research | Allies destroyed B-90 Cyclops 12461 | -2/Research | Spotted B-90 Cyclops 12466 | -2/Research | Destroyed B-90 Cyclops 12497 | -2/Research | Lost 3 allies 12579 | -2/Research | Found Quantum Capacitor 12824 | -2/Research | System corruption reached 30% 12931 | -2/Research | Garrison activated, responded to threat 13398 | -2/Research | First assault squad dispatched 13415 | -2/Research | Incoming assault squad redirected 13659 | -2/Research | Lost 4 parts (3u1w) 13680 | -2/Research | Core integrity fell below 50% 13912 | -2/Research | Discovered new exit (range 16) 13940 | -2/Research | Identified exit to Access 13943 | -2/Research | Entered Access 13943 | -1/Access | Evolved 2 slots: Power x1, Weapon x1 13953 | -1/Access | Energy Cycler disabled 14240 | -1/Access | Build established: Scavenger-Skirmisher 14286 | -1/Access | Spotted B-99 Colossus 14443 | -1/Access | First assault squad dispatched 14471 | -1/Access | Incoming assault squad redirected 14593 | -1/Access | System corruption reached 10% 14668 | -1/Access | Core integrity fell below 50% 14674 | -1/Access | Discovered new exit (range 6) 14676 | -1/Access | Identified exit to Surface 14676 | *** | Escaped! Last Messages --------------- 14662_ Slug penetrates Wall. 14662_ Penetrated by Slug. 14664_ Biometal Heavy Treads destroyed. 14665_ Slammed into H-88 Terminator. 14666_ Slug penetrates H-88 Terminator. 14666_ Slammed into H-88 Terminator. 14667_ Penetrated by Slug. 14670_ Slug penetrates A-15 Conveyor. 14670_ Slug penetrates Wall. 14671_ Penetrated by Slug. 14671_ Slug penetrates A-15 Conveyor. 14671_ A-15 Conveyor destroyed. 14672_ K-01 Serf collects debris. 14672_ Slug penetrates Terminal. 14674_ The Access Shell folds into the floor. 14674_ EXIT=FOUND 14675_ Slug penetrates Terminal. 14675_ K-01 Serf collects debris. 14676_ EXIT=IDENTIFIED: SURFACE [Achievement: This Is Interesting...] Map ----- +----------------------------------------------------+ | ????????????????????????????????# #???# | | ????????????????????????????????# !! ##### | | ????????????????????????????????# !! + #? | | ????????????????????????????????# ## #? | | ????????????????????????????????###############+## | | ????????????????????????????????????????### | | ????????????????????????????????????????#" | | ????????????????????????????????????????#"" | | ??????????????????????H?????????????????#"" = | | ????????????????????????????????????????#"" | | ????????????????????????????????????????#"" | | ????????????????????????????????????????#"T | | ????????????????????????????????????????#"" | | ????????????????????????????????????????#"" !! "" | | ??????????? ???????????????????????????#"" !! "" | | ??????????# ?????????????????????????#?#"" "" | | ??????????# ???????????????????????????#" T | | ??????????# ???????????????????????????### "" | | ??????????# ??????###????????????????????# "" | | ??????????# ####### ##########???????????# " | | ??????????# """T""" "???????????# [*! | | ??????????# h""" """ "???????????#%=%% | | ??????????# "???????????####+### | | ??????????# "????????????%%%%* % | | ??????????# "" "???????????? = % | | ??????????# @" "???????? | | ??????????#h "???? % | | ??????????# "???? ######### | | ??????????# k "???? ???? ???? | | ??????????#*%= "???? ??????? ???? | | ??????????# ####### ##########???????????? ??? | | ??????????# #?????###????????????????????? ??? | | ??????????# #????????????????????????????? ??? | | ??????????# #????????????????????????????????? | | ??????????# #???????????????????????????????? | | ??????????# #??????????????????????????????###### | | ??????????# %##################################### | | ??????????# % *%[!=*%[=[! | | ??????????# !%=]==!!][== | | ??????????# ##########+#+###### " ]%!%![%%= *% | | ??????????# #?????????????????+ "%" */=%*!|%![ = | | ??????????# #?????????????????####### ##/###+#+## | | ??????????# #???????????????????????# #][] [!| | | ??????????# #???????????????????????# # % | | ??????????# #???????????????????????# # % | | ??????????# #???????????????????????# # | | ??????????# #???????????????????????# # | | ??????????# #???????????????????????# # " | | ??????????# ???????????????"""T"""??? # """ | | ??????????? ???????????????"""?"""??? + """ | +----------------------------------------------------+ Best States ------------- Heat Dissipation 159 Energy Generation 59 Energy Capacity 660 Matter Stores 300 Matter Capacity 300 Sight Range 22 Robot Scan Range 16 Terrain Scan Range 16 Terrain Scan Density 85 Jamming Range 14 EM Shielding 4 Corruption Block 20 Armor Coverage 2400 Resistance: KI 20 Resistance: TH 15 Resistance: EM 20 Utility Shielding 66 Weapon Shielding 66 Point Defense Rating 240 Melee Speed Boost 30 Phase Shifting 15 Evasion (%) 80 Melee Accuracy 24 Target Analysis 12 Recoil Reduction 6 Offensive Hacking 31 Defensive Hacking 20 Item Schematics ----------------- Cld. Cesium-ion Thruster | -6/Factory | Scanalyzed Combat Drone Bay | -6/Data Miner | Free Lgt. Regenerative Plating | -6/Data Miner | Free Cld. Nuclear Pulse Thruster | -6/Data Miner | Free Adv. EM Disruption Field | -6/Data Miner | Free Ionic Axe | -6/Data Miner | Free Hvy. Siege Treads | -6/Data Miner | Free Adv. Reaction Control System | -6/Data Miner | Free Hardcell Cannon | -6/Data Miner | Free Robot Schematics ------------------ E-15 Imp | -6/Data Miner | Free Y-54 Guardian | -6/Data Miner | Free S-27 Virus | -6/Data Miner | Free C-35 Carver | -6/Data Miner | Free H-66 Slayer | -6/Data Miner | Free Fabricated ------------ Nothing Repaired ---------- Seismic Detector | 10% | -5/Factory Alien Tech Used ----------------- None Achievements -------------- Deadly Force Dodgeball, But With Guns Explorer It Was An Accident, I Swear No Signal Origins Revising The Future Revolutionary Research Slippery One This Is Interesting... Universal Adapter Challenges ------------ None Game ------ Seed WeaponSubdwellerRail Manual? 0 Play Time 03:36:00 Cumulative 28.7 hours Start 2025.05.05 @ 22:22:18 End 2025.05.06 @ 02:14:17 Sessions 1 Manual Loads 0 Difficulty Rogue Special Mode None Game No. 26 Rogue 26 Adventurer 0 Explorer 0 Win Type 0 Total 2 Types 2/0/0/0/0/0/0/0/0/0 Lore% 26 Gallery% 31 Achievement% 40 Wizard Run 0 Options --------- Layout 0 ASCII 0 Keyboard 1 Movement Vi Keybinds 0 Fullscreen 2 Font 18/SmallcapsGlow Map View 76x50 Zoom Use 0% Tactical HUD 1 Map Filters NONE Filters NONE Steam 1 RUN: 85670554-0294-412b-92ff-446d1973a2a7